bitfinex-derivatives/quotes_BTCF0:USTF0_20250422
["timestamp","ask_amount","ask_price","bid_price","bid_amount"]
[1745282166755,0.4181183,87231.0,87215.0,0.17200357]
[1745282166756,0.3608,87231.0,87215.0,0.46789491]
[1745282166963,0.00017194,87237.0,87216.0,0.37809134]
[1745282167263,0.01017194,87237.0,87231.0,0.3608]
[1745282167467,0.11480104,87237.0,87233.0,0.34932974]
[1745282167668,0.3608,87280.0,87234.0,0.0822]
[1745282167669,0.56533632,87280.0,87234.0,0.0822]
[1745282167967,0.01,87266.0,87259.0,0.3608]
[1745282168159,0.31951036,87279.0,87260.0,0.3608]
[1745282168359,0.1145957,87262.0,87260.0,0.65669134]
[1745282168556,0.31951036,87279.0,87262.0,0.29589134]
[1745282168761,0.68031036,87279.0,87262.0,0.1145945]
[1745282168968,0.68031036,87279.0,87260.0,0.3608]
[1745282168969,0.79031036,87279.0,87260.0,0.3608]
[1745282169268,0.00017194,87270.0,87252.0,0.00017194]
[1745282169470,0.1146003,87258.0,87257.0,0.0396]
[1745282169766,0.057293,87269.0,87257.0,0.0396]
[1745282169963,0.11,87269.0,87258.0,0.29589134]
[1745282170160,0.11,87269.0,87260.0,0.29589134]
[1745282170361,0.00017194,87270.0,87268.0,0.3608]
[1745282170561,0.3608,87289.0,87278.0,0.1145741]
[1745282170762,0.3608,87294.0,87278.0,0.3608]
[1745282171064,0.31935587,87296.0,87294.0,0.1145531]
[1745282171267,0.1145518,87295.0,87293.0,0.7216]
[1745282171467,0.31935587,87296.0,87283.0,0.3608]
[1745282171667,0.31935587,87296.0,87290.0,0.3608]
[1745282171668,0.1145568,87292.0,87290.0,0.3608]
[1745282171862,0.1145568,87292.0,87284.0,0.0393]
[1745282171863,0.1145649,87285.0,87284.0,0.0393]
[1745282172066,0.0392,87291.0,87279.0,0.16006125]
[1745282172365,0.1145656,87285.0,87284.0,0.192]
[1745282173169,0.1145656,87285.0,87284.0,0.19208]
[1745282173360,0.19102116,87285.0,87284.0,0.19208]
[1745282173666,0.13373826,87285.0,87277.0,0.16006125]
[1745282173863,0.07645556,87285.0,87277.0,0.16006125]
[1745282174166,0.1145678,87283.0,87278.0,0.19926125]
[1745282174666,0.07745556,87285.0,87279.0,0.16006125]
[1745282174871,0.07645556,87285.0,87284.0,0.1145662]
[1745282175163,0.34739137,87285.0,87284.0,0.3065662]
[1745282175370,0.34739137,87285.0,87284.0,0.11]
[1745282175565,0.34739137,87285.0,87284.0,0.2245662]
[1745282175769,0.34739137,87285.0,87284.0,0.3079662]
[1745282175957,0.34739137,87285.0,87284.0,0.1934]
[1745282176273,0.83652427,87285.0,87284.0,0.302]
[1745282176581,0.83652427,87285.0,87279.0,0.001]
[1745282176582,0.0572838,87283.0,87279.0,0.001]
[1745282176760,0.0572883,87276.0,87262.0,0.0429458]
[1745282176958,0.1145938,87263.0,87262.0,0.0001458]
[1745282177267,0.1245938,87263.0,87262.0,0.1921458]
[1745282177465,0.0573004,87258.0,87250.0,0.0428]
[1745282177659,0.1146148,87247.0,87245.0,0.04106255]
[1745282177862,0.1346148,87247.0,87245.0,0.08066255]
[1745282178061,0.1346148,87247.0,87246.0,0.1921458]
[1745282178269,0.1346148,87247.0,87246.0,0.2317458]
[1745282178571,0.00017184,87265.0,87246.0,0.27238]
[1745282178867,0.01017184,87265.0,87246.0,0.2723]
[1745282179070,0.05057184,87265.0,87256.0,0.3608]
[1745282179368,0.1146003,87258.0,87257.0,0.0803]
[1745282179560,0.02229184,87265.0,87264.0,0.1145925]
[1745282179760,0.02229184,87265.0,87252.0,0.0573035]
[1745282179956,0.0573023,87255.0,87243.0,0.24830233]
[1745282180166,0.1146187,87244.0,87243.0,0.44030233]
[1745282180359,0.1146187,87244.0,87243.0,0.5528]
[1745282180560,0.1146187,87244.0,87243.0,0.18347976]
[1745282180764,0.24923871,87244.0,87243.0,0.18347976]
[1745282180966,0.1146266,87238.0,87235.0,0.00046255]
[1745282181168,0.4754292,87236.0,87235.0,0.19111336]
[1745282181466,0.6008,87236.0,87213.0,0.000108]
[1745282181671,0.4754581,87214.0,87213.0,0.000108]
[1745282181859,0.3608,87224.0,87194.0,0.30731912]
[1745282182169,0.0573246,87221.0,87213.0,0.192]
[1745282182357,0.2973246,87221.0,87213.0,0.192]
[1745282182557,0.1146581,87214.0,87213.0,0.19208]
[1745282183072,0.1146581,87214.0,87213.0,0.1080185]
[1745282183366,0.1146581,87214.0,87203.0,0.0001458]
[1745282183367,0.1146713,87204.0,87203.0,0.0001458]
[1745282183573,0.0573453,87190.0,87183.0,0.00026572]
[1745282183769,0.4754976,87184.0,87183.0,0.00026572]
[1745282183964,0.1147029,87180.0,87179.0,0.0419]
[1745282184170,0.4754984,87184.0,87183.0,8e-05]
[1745282184366,0.7454984,87184.0,87183.0,8e-05]
[1745282184668,0.4754984,87184.0,87183.0,8e-05]
[1745282184870,0.7554984,87184.0,87183.0,8e-05]
[1745282185073,0.7064984,87184.0,87183.0,8e-05]
[1745282185370,0.001,87184.0,87183.0,0.3067789]
[1745282185570,0.3618,87204.0,87203.0,0.1146726]
[1745282185759,0.3618,87204.0,87183.0,0.55678]
[1745282185760,0.001,87204.0,87189.0,0.35485138]
[1745282185961,0.3608,87222.0,87217.0,0.1146542]
[1745282186459,0.3608,87222.0,87217.0,0.13257835]
[1745282186665,0.55510405,87218.0,87217.0,0.13257835]
[1745282186866,0.79510405,87218.0,87217.0,0.13257835]
[1745282187069,0.82510405,87218.0,87217.0,0.13257835]
[1745282187270,0.3608,87222.0,87218.0,0.1146529]
[1745282187472,0.3608,87222.0,87217.0,0.16047562]
[1745282187473,0.4181239,87222.0,87217.0,0.16047562]
[1745282187672,0.001,87218.0,87217.0,0.27512982]
[1745282187865,0.241,87218.0,87217.0,0.27512982]
[1745282188370,0.3566529,87218.0,87217.0,0.16047562]
[1745282188671,0.58130891,87218.0,87217.0,0.16030357]
[1745282188876,0.66310891,87218.0,87217.0,0.16030357]
[1745282189076,0.66210891,87218.0,87217.0,0.16038357]
[1745282189264,0.1146634,87210.0,87197.0,0.000108]
[1745282189468,0.1147055,87178.0,87177.0,0.0407]
[1745282189671,0.1147009,87182.0,87177.0,0.040808]
[1745282189972,0.1147002,87182.0,87181.0,0.1147008]
[1745282190166,0.1147055,87178.0,87177.0,0.232808]
[1745282190368,0.1147055,87178.0,87177.0,0.192108]
[1745282190568,0.1147055,87178.0,87177.0,0.192]
[1745282190870,0.1147055,87178.0,87177.0,0.19308]
[1745282191076,0.3647055,87178.0,87177.0,0.0174637]
[1745282191370,0.3394135,87178.0,87177.0,0.0185437]
[1745282191575,0.7002135,87178.0,87177.0,0.0184637]
[1745282191971,0.7012135,87178.0,87177.0,0.0174637]
[1745282192266,2.01121402,87178.0,87177.0,0.0165437]
[1745282192468,0.0573572,87172.0,87168.0,0.1147147]
[1745282192671,0.4755185,87169.0,87168.0,0.0573588]
[1745282192883,0.3608,87169.0,87168.0,0.0573588]
[1745282193174,0.0573552,87175.0,87174.0,0.1147081]
[1745282193476,0.24,87175.0,87174.0,0.1147081]
[1745282193677,0.98425737,87178.0,87177.0,0.1147068]
[1745282193881,0.98425737,87178.0,87175.0,0.04035076]
[1745282194079,0.98425737,87178.0,87177.0,0.1147068]
[1745282195168,0.98504354,87178.0,87177.0,0.3067068]
[1745282195676,0.98504354,87178.0,87177.0,0.3487068]
[1745282196570,1.21445704,87178.0,87177.0,0.192]
[1745282196779,1.21445704,87178.0,87177.0,0.19208]
[1745282196976,1.21445704,87178.0,87177.0,0.1812399]
[1745282197181,0.86673724,87178.0,87177.0,0.17271173]
[1745282197482,0.86573724,87178.0,87177.0,0.14608548]
[1745282197779,1.12573724,87178.0,87177.0,0.13460792]
[1745282198083,1.12573724,87178.0,87177.0,0.13468792]
[1745282198084,1.12873724,87178.0,87177.0,0.13468792]
[1745282198578,1.12873724,87178.0,87158.0,0.000108]
[1745282198579,0.1147305,87159.0,87158.0,0.000108]
[1745282198881,0.7216,87159.0,87143.0,0.04]
[1745282199096,0.7216,87144.0,87143.0,0.04]
[1745282199483,0.7216,87144.0,87143.0,0.1547516]
[1745282199787,0.7216,87144.0,87143.0,0.1548316]
[1745282199984,0.7216,87144.0,87143.0,0.1547516]
[1745282200283,0.7216,87144.0,87143.0,0.3468316]
[1745282200581,0.8363502,87144.0,87127.0,0.000108]
[1745282200780,0.3608,87133.0,87128.0,0.01785668]
[1745282200981,0.3608,87133.0,87127.0,0.000108]
[1745282200982,0.3608,87133.0,87132.0,0.1147661]
[1745282201387,0.3608,87133.0,87129.0,0.042]
[1745282201388,0.1147687,87130.0,87129.0,0.042]
[1745282201681,0.4755687,87130.0,87129.0,0.042]
[1745282201888,0.4755687,87130.0,87129.0,0.04208]
[1745282202085,0.4755687,87130.0,87129.0,0.234]
[1745282202272,0.4755687,87130.0,87129.0,0.19208]
[1745282202478,0.1147727,87127.0,87124.0,0.1147762]
[1745282202678,0.4765687,87130.0,87129.0,8e-05]
[1745282202874,0.3618,87130.0,87117.0,0.000108]
[1745282203074,0.3608,87118.0,87117.0,0.1147858]
[1745282203289,0.3608,87130.0,87129.0,0.11477]
[1745282203478,0.3618,87130.0,87129.0,0.11777]
[1745282203682,0.001,87130.0,87129.0,0.482542]
[1745282203985,0.00017215,87132.0,87131.0,0.1147674]
[1745282204287,0.0459,87137.0,87136.0,0.1147608]
[1745282204675,0.0459,87137.0,87136.0,0.4795248]
[1745282204987,0.3477198,87143.0,87142.0,0.1147529]
[1745282205184,0.3477198,87143.0,87142.0,0.3647529]
[1745282205377,0.3477198,87143.0,87142.0,0.2295089]
[1745282206081,0.3477198,87143.0,87142.0,0.2295889]
[1745282206284,0.3477198,87143.0,87142.0,0.4215889]
[1745282206492,0.00017215,87145.0,87144.0,0.1147502]
[1745282206789,0.3477198,87157.0,87156.0,0.1147344]
[1745282207084,0.7085198,87157.0,87156.0,0.3067344]
[1745282208089,0.91042162,87157.0,87156.0,0.192]
[1745282208283,0.91142162,87157.0,87156.0,0.193]
[1745282208587,0.79768852,87157.0,87156.0,0.3088144]
[1745282209683,0.43688852,87157.0,87156.0,0.3098144]
[1745282209886,0.91242162,87157.0,87156.0,0.3098144]
[1745282210182,1.49989725,87157.0,87156.0,0.19508]
[1745282210386,1.38516415,87157.0,87154.0,0.1147351]
[1745282210687,0.0573684,87155.0,87154.0,0.1147371]
[1745282211079,0.22443712,87155.0,87154.0,0.3067371]
[1745282211679,0.22443712,87155.0,87154.0,0.194]
[1745282211879,0.22443712,87155.0,87154.0,0.13310623]
[1745282212082,0.22543712,87155.0,87154.0,0.13310623]
[1745282212279,0.22543712,87155.0,87154.0,0.13318623]
[1745282212589,0.16806872,87155.0,87154.0,0.13318623]
[1745282212773,0.28280452,87155.0,87154.0,0.13318623]
[1745282212976,0.28280452,87155.0,87154.0,0.01844913]
[1745282213179,0.87128015,87155.0,87148.0,0.00017215]
[1745282213380,0.72674403,87155.0,87154.0,0.1147371]
[1745282213581,1.08754403,87155.0,87154.0,0.1147371]
[1745282213786,1.17471275,87155.0,87154.0,0.1157371]
[1745282214175,1.17471275,87155.0,87154.0,0.3087371]
[1745282214480,1.17471275,87155.0,87154.0,0.3077371]
[1745282214881,0.89288566,87155.0,87154.0,0.3077371]
[1745282215284,0.89288566,87155.0,87154.0,0.10660397]
[1745282215487,0.74834854,87155.0,87154.0,0.22134107]
[1745282216988,0.74734854,87155.0,87153.0,0.0393]
[1745282217181,0.74834854,87155.0,87154.0,0.192]
[1745282217583,0.86308434,87155.0,87154.0,0.3067371]
[1745282217788,0.86208434,87155.0,87154.0,0.3067371]
[1745282217982,0.86308434,87155.0,87154.0,0.3077371]
[1745282218179,0.86308434,87155.0,87154.0,0.32315333]
[1745282218384,0.74834854,87155.0,87154.0,0.32315333]
[1745282218591,0.86308434,87155.0,87154.0,0.3077371]
[1745282218790,0.86308434,87155.0,87154.0,0.3078171]
[1745282219386,0.95025306,87155.0,87154.0,0.19308]
[1745282219689,1.20025306,87155.0,87154.0,0.19308]
[1745282219888,0.95925306,87155.0,87154.0,0.19308]
[1745282220092,1.21025306,87155.0,87154.0,0.14700785]
[1745282220293,1.31025306,87155.0,87154.0,0.08470785]
[1745282220495,0.11477,87129.0,87128.0,0.00172163]
[1745282220688,0.47557,87129.0,87128.0,0.00172163]
[1745282220993,0.47557,87129.0,87120.0,0.00019683]
[1745282220994,0.1905,87128.0,87103.0,0.05751]
[1745282221193,0.1147897,87117.0,87116.0,0.1147831]
[1745282221390,0.3608,87129.0,87127.0,0.1147726]
[1745282221391,0.0402,87128.0,87127.0,0.1147726]
[1745282221898,0.0573871,87126.0,87121.0,0.1147801]
[1745282222080,0.3608,87122.0,87121.0,0.3067801]
[1745282222282,0.3608,87128.0,87121.0,0.192]
[1745282222486,0.002,87129.0,87128.0,0.1147713]
[1745282222685,0.00017215,87136.0,87122.0,0.0398]
[1745282222686,0.00017215,87136.0,87135.0,0.1147621]
[1745282223086,0.00017215,87136.0,87135.0,0.3067621]
[1745282223584,0.00017215,87136.0,87135.0,0.5028061]
[1745282223991,0.3608,87145.0,87144.0,0.1147502]
[1745282224295,0.3608,87145.0,87144.0,0.3067502]
[1745282224592,0.3608,87145.0,87144.0,0.43708012]
[1745282224794,0.4755489,87145.0,87144.0,0.32232812]
[1745282224992,0.3608,87145.0,87144.0,0.32232812]
[1745282225194,0.3618,87145.0,87144.0,0.32240812]
[1745282225394,0.3618,87145.0,87144.0,0.43716012]
[1745282225590,0.3618,87145.0,87144.0,0.4215822]
[1745282225791,0.002,87145.0,87144.0,0.4215822]
[1745282226897,0.27137918,87145.0,87144.0,0.3068302]
[1745282227197,0.27137918,87145.0,87144.0,0.01410189]
[1745282227398,0.27037918,87145.0,87144.0,0.12885209]
[1745282227598,0.38612808,87145.0,87144.0,0.12885209]
[1745282227789,0.27137918,87145.0,87144.0,0.12885209]
[1745282227990,0.27137918,87145.0,87144.0,0.12877209]
[1745282228192,0.27137918,87145.0,87144.0,0.12885209]
[1745282228498,0.38612808,87145.0,87144.0,0.12885209]
[1745282229110,0.27137918,87145.0,87144.0,0.12885209]
[1745282229491,0.27137918,87145.0,87143.0,0.02459133]
[1745282229795,0.27137918,87145.0,87144.0,0.1529502]
[1745282230198,0.27137918,87145.0,87144.0,0.3449502]
[1745282230397,0.38612808,87145.0,87144.0,0.3067502]
[1745282230591,0.38612808,87145.0,87144.0,0.192]
[1745282230794,0.38612808,87145.0,87144.0,0.3067502]
[1745282231189,0.38612808,87145.0,87136.0,0.0574877]
[1745282231389,0.27137918,87145.0,87144.0,0.1147502]
[1745282231799,0.27137918,87145.0,87144.0,0.2295022]
[1745282232195,0.27137918,87145.0,87144.0,0.4215022]
[1745282232695,0.27137918,87145.0,87144.0,1.0523022]
[1745282232896,0.28182709,87148.0,87147.0,0.1147463]
[1745282233095,0.0971576,87171.0,87164.0,0.1147239]
[1745282233400,0.1147176,87169.0,87168.0,0.1720749]
[1745282233793,0.1147176,87169.0,87168.0,0.0573589]
[1745282234197,0.1147176,87169.0,87168.0,0.2493589]
[1745282234403,0.3608,87174.0,87173.0,0.1147121]
[1745282234604,0.3608,87174.0,87173.0,0.1137121]
[1745282234807,0.00517215,87177.0,87176.0,0.1147081]
[1745282235207,0.00517215,87177.0,87176.0,0.2294161]
[1745282235403,0.00517215,87177.0,87176.0,0.2274161]
[1745282235906,0.00517215,87177.0,87176.0,0.2374161]
[1745282236094,0.04587,87185.0,87184.0,0.1146976]
[1745282236497,0.04587,87185.0,87184.0,0.2293976]
[1745282236701,0.04587,87185.0,87184.0,0.4983976]
[1745282236906,0.2594068,87191.0,87190.0,0.1146897]
[1745282237094,0.4181319,87210.0,87190.0,0.00870278]
[1745282237095,0.0573319,87210.0,87190.0,0.00870278]
[1745282237299,0.1146672,87208.0,87202.0,0.1146739]
[1745282237495,0.3658,87203.0,87202.0,0.1146739]
[1745282237702,0.4804726,87203.0,87202.0,0.1146739]
[1745282238108,0.4804726,87203.0,87202.0,0.3444739]
[1745282238407,0.4814726,87203.0,87202.0,0.3454739]
[1745282239000,0.4824726,87203.0,87202.0,0.194]
[1745282239205,0.4824726,87203.0,87165.0,0.4114]
[1745282239206,0.0573445,87191.0,87165.0,0.4114]
[1745282239509,0.1147029,87180.0,87179.0,0.1554042]
[1745282239697,0.1147042,87179.0,87178.0,0.000108]
[1745282239900,0.0419,87179.0,87178.0,0.1147055]
[1745282240107,0.0826,87179.0,87178.0,0.1147055]
[1745282240304,0.1973042,87179.0,87178.0,0.3067055]
[1745282240602,0.5581042,87179.0,87178.0,0.3067055]
[1745282240803,0.4434,87179.0,87178.0,0.3067855]
[1745282241197,0.4025,87179.0,87178.0,0.3097855]
[1745282241411,0.0417,87179.0,87178.0,0.3097855]
[1745282241608,0.1574042,87179.0,87178.0,0.3127855]
[1745282242107,0.0427,87179.0,87178.0,0.3127855]
[1745282242297,0.0427,87179.0,87178.0,0.4274935]
[1745282242498,0.0427,87179.0,87178.0,0.4697935]
[1745282242699,0.002,87179.0,87178.0,0.4697935]
[1745282243196,0.002,87179.0,87178.0,0.4897935]
[1745282243399,0.04604204,87187.0,87186.0,0.114695]
[1745282243602,0.04604204,87187.0,87186.0,0.51101131]
[1745282243805,0.00017204,87187.0,87186.0,0.6257073]
[1745282244106,0.00017204,87187.0,87186.0,0.9011073]
[1745282244795,0.00117204,87187.0,87186.0,0.9051073]
[1745282245001,0.00217204,87187.0,87186.0,0.9051073]
[1745282245399,0.00217204,87187.0,87186.0,0.5243073]
[1745282245605,0.00217204,87187.0,87186.0,0.50879099]
[1745282245800,0.00217204,87187.0,87186.0,0.50887099]
[1745282246609,0.00017204,87187.0,87186.0,0.52125232]
[1745282246812,0.00117204,87187.0,87186.0,0.52325232]
[1745282247007,0.00117204,87187.0,87186.0,0.53325232]
[1745282247608,0.00117204,87187.0,87186.0,0.51787099]
[1745282250012,0.00117204,87187.0,87186.0,0.47557099]
[1745282250211,0.00117204,87187.0,87186.0,0.48557099]
[1745282251002,0.00117204,87187.0,87186.0,0.34532638]
[1745282251213,0.00117204,87187.0,87186.0,0.32532638]
[1745282251509,0.00117204,87187.0,87186.0,0.309775]
[1745282251713,0.00117204,87187.0,87186.0,0.32549622]
[1745282251910,0.00117204,87187.0,87186.0,0.32557622]
[1745282252108,0.04467204,87187.0,87186.0,0.32557622]
[1745282253406,0.00117204,87187.0,87186.0,0.32557622]
[1745282253604,0.00117204,87187.0,87186.0,0.44027221]
[1745282254011,0.00117204,87187.0,87186.0,0.53337221]
[1745282254216,0.00117204,87187.0,87186.0,0.52337221]
[1745282254406,0.00117204,87187.0,87186.0,0.53337221]
[1745282254606,0.00117204,87187.0,87186.0,0.54337221]
[1745282255315,0.00117204,87187.0,87186.0,0.54396446]
[1745282257920,0.08667,87194.0,87193.0,0.1146858]
[1745282258115,1.0,95994.0,87200.0,0.0573378]
[1745282258116,0.4181272,87217.0,87200.0,0.0573378]
[1745282258312,0.0431,87206.0,87205.0,0.11467]
[1745282258718,0.4039,87206.0,87205.0,0.229342]
[1745282258912,0.4039,87206.0,87205.0,0.269642]
[1745282259214,0.0431,87206.0,87205.0,0.461642]
[1745282260120,0.2008687,87206.0,87205.0,0.30667]
[1745282260818,0.4518687,87206.0,87205.0,0.20759664]
[1745282261017,0.4518687,87206.0,87197.0,0.11485254]
[1745282261018,0.1146792,87198.0,87197.0,0.11485254]
[1745282261316,0.4754792,87198.0,87197.0,0.1304507]
[1745282261617,0.4754792,87198.0,87197.0,0.11493254]
[1745282262020,0.5607792,87198.0,87197.0,0.11493254]
[1745282262320,0.5607792,87198.0,87197.0,0.30693254]
[1745282263022,0.5607792,87198.0,87197.0,0.30793254]
[1745282263222,0.60817975,87198.0,87197.0,0.30793254]
[1745282263416,0.60817975,87198.0,87197.0,0.13239187]
[1745282263716,0.60817975,87198.0,87197.0,0.14804664]
[1745282263920,0.13370055,87198.0,87197.0,0.26272714]
[1745282264622,0.13370055,87198.0,87197.0,0.37741114]
[1745282264823,0.09060055,87198.0,87197.0,0.37741114]
[1745282265323,0.15895423,87198.0,87197.0,0.41951114]
[1745282265818,0.15895423,87198.0,87197.0,0.45385637]
[1745282267623,0.51975423,87198.0,87197.0,0.45385637]
[1745282268124,0.15895423,87198.0,87197.0,0.28917237]
[1745282268716,0.51975423,87198.0,87197.0,0.28917237]
[1745282269120,0.404,87198.0,87197.0,0.28917237]
[1745282270019,0.0432,87198.0,87197.0,0.40385637]
[1745282270215,0.11575423,87205.0,87204.0,0.1146713]
[1745282270422,0.11575423,87205.0,87204.0,0.1246713]
[1745282270822,0.15765423,87205.0,87204.0,0.1246713]
[1745282271329,0.14469279,87217.0,87213.0,0.1146595]
[1745282271527,0.14469279,87217.0,87213.0,0.1136595]
[1745282272210,0.14469279,87217.0,87213.0,0.3056595]
[1745282272920,0.14469279,87217.0,87213.0,0.3057395]
[1745282273119,0.00217204,87214.0,87213.0,0.3057395]
[1745282273823,0.11783014,87214.0,87213.0,0.3057395]
[1745282274424,0.00317204,87214.0,87213.0,0.15949532]
[1745282274624,0.00317204,87214.0,87213.0,0.27415482]
[1745282276113,0.00317204,87214.0,87213.0,0.31525482]
[1745282278218,0.00317204,87214.0,87213.0,0.42991482]
[1745282279414,0.00317204,87214.0,87213.0,0.43991482]
[1745282281326,0.04586,87221.0,87220.0,0.1146503]
[1745282281622,0.53404673,87227.0,87226.0,0.1146424]
[1745282282219,0.53404673,87227.0,87226.0,0.3066424]
[1745282282826,0.64868783,87227.0,87226.0,0.31526507]
[1745282283025,0.69148783,87227.0,87226.0,0.31526507]
[1745282283234,0.80148783,87227.0,87226.0,0.31434507]
[1745282283528,0.69148783,87227.0,87226.0,0.31426507]
[1745282284120,0.57684673,87227.0,87226.0,0.31526507]
[1745282284315,0.57684673,87227.0,87226.0,0.31534507]
[1745282284528,0.61904673,87227.0,87226.0,0.31534507]
[1745282284727,0.73368783,87227.0,87226.0,0.31534507]
[1745282284930,0.60782391,87227.0,87226.0,0.31534507]
[1745282286331,0.49318281,87227.0,87226.0,0.31534507]
[1745282286528,0.60782391,87227.0,87226.0,0.31534507]
[1745282287733,0.49318281,87227.0,87226.0,0.31534507]
[1745282288723,0.49318281,87227.0,87226.0,0.35964507]
[1745282289024,0.04602204,87235.0,87234.0,0.1146319]
[1745282289222,0.08962204,87235.0,87234.0,0.1146319]
[1745282289524,0.04377204,87235.0,87234.0,0.1146319]
[1745282290133,0.04377204,87235.0,87234.0,0.3066319]
[1745282290432,0.08877204,87235.0,87234.0,0.3076319]
[1745282290828,0.08877204,87235.0,87234.0,0.3520319]
[1745282291329,0.00117204,87235.0,87234.0,0.3520319]
[1745282291529,0.1146115,87250.0,87249.0,0.1146108]
[1745282291728,0.0573028,87254.0,87250.0,0.1146108]
[1745282291928,0.17824673,87255.0,87250.0,0.1146108]
[1745282292131,0.17824673,87255.0,87250.0,0.3066108]
[1745282292629,0.29285113,87255.0,87250.0,0.3056108]
[1745282292928,0.17824673,87255.0,87254.0,0.1146056]
[1745282293127,0.17824673,87255.0,87254.0,0.1126056]
[1745282293524,0.005,87255.0,87254.0,0.1116056]
[1745282294128,0.005,87255.0,87254.0,0.3126056]
[1745282294430,0.04583,87262.0,87261.0,0.1145964]
[1745282294731,0.04583,87262.0,87261.0,0.4943964]
[1745282295236,0.04583,87262.0,87261.0,0.3155964]
[1745282295533,0.04583,87262.0,87261.0,0.3056764]
[1745282295731,0.29583,87262.0,87261.0,0.19208]
[1745282295931,0.29583,87262.0,87261.0,0.3066764]
[1745282296128,0.29583,87262.0,87261.0,0.3065964]
[1745282296324,0.33763,87262.0,87261.0,0.3066764]
[1745282296524,0.3436,87262.0,87261.0,0.3066764]
[1745282296832,0.3436,87262.0,87261.0,0.3086764]
[1745282297429,0.2081951,87262.0,87261.0,0.3086764]
[1745282297630,0.3081951,87262.0,87261.0,0.3086764]
[1745282297935,0.1936,87262.0,87261.0,0.3085964]
[1745282298136,0.1936,87262.0,87261.0,0.3086764]
[1745282298333,0.0936,87262.0,87261.0,0.3086764]
[1745282298539,0.3536,87262.0,87261.0,0.3086764]
[1745282298833,0.1936,87262.0,87261.0,0.3086764]
[1745282299228,0.3081951,87262.0,87261.0,0.19408]
[1745282299427,0.11462,87243.0,87242.0,0.11479203]
[1745282299637,0.21462,87243.0,87242.0,0.11479203]
[1745282299932,0.11462,87243.0,87242.0,0.11479203]
[1745282300232,0.11,87243.0,87242.0,0.30687203]
[1745282300433,0.22462,87243.0,87242.0,0.30887203]
[1745282300627,0.32392,87243.0,87242.0,0.30887203]
[1745282300935,0.2093,87243.0,87242.0,0.30887203]
[1745282301133,0.2093,87243.0,87242.0,0.31087203]
[1745282301535,0.0993,87243.0,87242.0,0.31087203]
[1745282302325,0.0993,87243.0,87242.0,0.31187203]
[1745282303034,0.0993,87243.0,87242.0,0.30687203]
[1745282303235,0.0993,87243.0,87242.0,0.31187203]
[1745282303636,0.0993,87243.0,87242.0,0.30987203]
[1745282304029,0.0993,87243.0,87242.0,0.31387203]
[1745282304336,0.0572974,87263.0,87250.0,0.1146108]
[1745282304543,0.0529,87255.0,87250.0,0.1546108]
[1745282304845,0.0529,87255.0,87250.0,0.1146108]
[1745282305231,0.3608,87265.0,87264.0,0.1145925]
[1745282305737,0.36088,87265.0,87264.0,0.1145925]
[1745282306241,8e-05,87265.0,87264.0,0.3065925]
[1745282306431,0.0529,87265.0,87264.0,0.3065925]
[1745282306736,8e-05,87265.0,87264.0,0.3065925]
[1745282306937,0.20186496,87268.0,87267.0,0.1145885]
[1745282307126,0.20186496,87268.0,87267.0,0.3065885]
[1745282309437,0.0529,87271.0,87270.0,0.1145846]
[1745282309627,0.0529,87271.0,87270.0,0.12318135]
[1745282310030,0.0529,87271.0,87270.0,0.1145846]
[1745282310234,0.0529,87271.0,87270.0,0.3065846]
[1745282310430,0.0539,87271.0,87270.0,0.3065846]
[1745282314239,0.1639,87271.0,87270.0,0.3065846]
[1745282315038,0.1639,87271.0,87270.0,0.3066646]
[1745282315444,0.0539,87271.0,87270.0,0.3066646]
[1745282315645,0.1539,87271.0,87270.0,0.3066646]
[1745282316234,0.2094,87271.0,87270.0,0.3066646]
[1745282316439,0.2094,87271.0,87270.0,0.3065846]
[1745282316640,0.001,87271.0,87270.0,0.3066646]
[1745282316943,0.001,87271.0,87270.0,0.3220713]
[1745282317146,0.00108,87271.0,87270.0,0.32207606]
[1745282317336,0.00108,87271.0,87270.0,0.37677606]
[1745282318447,0.001,87271.0,87270.0,0.37677606]
[1745282319048,0.001,87271.0,87270.0,0.37669606]
[1745282319442,0.01570357,87271.0,87270.0,0.40603538]
[1745282320035,0.01570357,87271.0,87270.0,0.39930633]
[1745282320242,0.10570357,87271.0,87270.0,0.34460633]
[1745282320442,0.01570357,87271.0,87270.0,0.34460633]
[1745282321953,0.21251492,87271.0,87270.0,0.33592392]
[1745282322343,0.10251492,87271.0,87270.0,0.33592392]
[1745282322542,0.10251492,87271.0,87270.0,0.33600392]
[1745282323252,0.08781135,87271.0,87270.0,0.3065846]
[1745282323654,0.08781135,87271.0,87270.0,0.33592392]
[1745282323848,0.10251492,87271.0,87270.0,0.33592392]
[1745282324851,0.01570357,87271.0,87270.0,0.33592392]
[1745282325446,0.11570357,87271.0,87270.0,0.33592392]
[1745282325949,0.01570357,87271.0,87270.0,0.33592392]
[1745282327648,0.01570357,87271.0,87270.0,0.35150015]
[1745282328351,0.001,87271.0,87270.0,0.35150015]
[1745282329049,0.001,87271.0,87270.0,0.3065846]
[1745282329355,0.01570357,87271.0,87270.0,0.33592392]
[1745282329852,0.01570357,87271.0,87270.0,0.40182392]
[1745282330649,0.01578357,87271.0,87270.0,0.41783454]
[1745282330849,0.01578357,87271.0,87270.0,0.42622464]
[1745282331846,0.20960643,87280.0,87276.0,0.0572882]
[1745282332057,0.20960643,87280.0,87279.0,0.1145728]
[1745282332255,0.20968643,87280.0,87279.0,0.13058342]
[1745282332460,0.27858643,87280.0,87279.0,0.13058342]
[1745282332955,0.27858643,87280.0,87279.0,0.1145728]
[1745282333155,0.27858643,87280.0,87279.0,0.3220471]
[1745282333360,0.27850643,87280.0,87279.0,0.3065728]
[1745282333557,0.134,87280.0,87279.0,0.3065728]
[1745282333764,0.135,87280.0,87279.0,0.33610013]
[1745282334174,0.136,87280.0,87279.0,0.33610013]
[1745282334458,0.136,87280.0,87279.0,0.33618013]
[1745282335356,0.2505714,87280.0,87279.0,0.33618013]
[1745282336564,0.136,87280.0,87279.0,0.33618013]
[1745282337767,0.29792773,87280.0,87279.0,0.27537603]
[1745282338366,0.29792773,87280.0,87279.0,0.2458487]
[1745282338572,0.29792773,87280.0,87279.0,0.2457687]
[1745282339372,0.29792773,87280.0,87279.0,0.27529603]
[1745282339765,0.18335633,87280.0,87279.0,0.27529603]
[1745282340069,0.18343633,87280.0,87279.0,0.29068252]
[1745282340267,0.18343633,87280.0,87279.0,0.15948662]
[1745282340474,0.18343633,87280.0,87279.0,0.18948662]
[1745282340662,0.18356501,87280.0,87279.0,0.15948662]
[1745282341372,0.18356501,87280.0,87279.0,0.35148662]
[1745282342073,0.18356501,87280.0,87279.0,0.35220511]
[1745282342273,0.11466501,87280.0,87279.0,0.35220511]
[1745282342473,0.005,87281.0,87280.0,0.1145714]